bitfinex-derivatives/quotes_ETHF0:USTF0_20250103
["timestamp","ask_amount","ask_price","bid_price","bid_amount"]
[1735868606658,0.28971,3455.0,3454.9,3.2078]
[1735868607362,41.08971,3455.0,3454.9,3.2078]
[1735868609759,40.8,3455.0,3454.6,3.49755]
[1735868610062,0.28974,3454.7,3454.6,3.49755]
[1735868610564,0.28974,3454.7,3454.5,5.9598998]
[1735868610858,44.0078,3455.0,3454.5,5.6701498]
[1735868611064,0.28975,3454.6,3454.5,5.6701498]
[1735868612357,0.28975,3454.6,3454.5,1.135]
[1735868612757,44.73209,3455.0,3454.3,4.5351498]
[1735868612758,0.28976,3454.4,3454.3,4.5351498]
[1735868613660,47.02240313,3455.0,3454.2,3.2078]
[1735868613963,0.28977,3454.3,3454.2,3.2078]
[1735868614360,0.28977,3454.3,3454.2,3.49758]
[1735868614969,0.28977,3454.3,3454.2,8.0327298]
[1735868615861,0.28977,3454.3,3454.2,7.7429498]
[1735868616462,0.28977,3454.3,3454.2,8.0327298]
[1735868617265,0.28977,3454.3,3454.2,7.7429498]
[1735868617667,0.28977,3454.3,3454.2,4.5351498]
[1735868618170,41.08977,3454.3,3454.2,4.5351498]
[1735868619266,0.28981,3453.8,3453.7,4.5351498]
[1735868620570,3.2078,3454.0,3453.6,4.5351498]
[1735868620767,0.28982,3453.7,3453.6,4.5351498]
[1735868622068,0.28985,3453.4,3453.3,4.5351498]
[1735868624471,0.28986,3453.3,3453.2,5.6701498]
[1735868625771,0.28986,3453.3,3453.2,1.135]
[1735868628267,0.28986,3453.3,3453.2,2.14254329]
[1735868631776,0.28985,3453.4,3453.2,2.43241329]
[1735868631975,3.2078,3453.7,3453.2,2.14254329]
[1735868632277,0.28983,3453.6,3453.5,1.00754329]
[1735868634977,3.2078,3453.7,3453.3,1.29740329]
[1735868635171,0.28985,3453.4,3453.3,1.00754329]
[1735868637077,0.28987,3453.1,3453.0,3.2078]
[1735868637381,0.28987,3453.1,3453.0,2.14254329]
[1735868637572,41.08987,3453.1,3453.0,1.00754329]
[1735868637773,0.28988,3453.0,3452.9,4.5351498]
[1735868638182,0.28988,3453.0,3452.8,1.00754329]
[1735868638183,0.28989,3452.9,3452.8,5.54269309]
[1735868638479,0.28989,3452.9,3452.8,5.83259309]
[1735868638679,4.21534329,3453.4,3452.8,5.83259309]
[1735868638982,4.21534329,3453.4,3453.0,1.00754329]
[1735868639184,0.28987,3453.1,3453.0,1.00754329]
[1735868639681,41.08987,3453.1,3453.0,1.00754329]
[1735868640481,41.08987,3453.1,3453.0,1.29742329]
[1735868640682,41.08987,3453.1,3453.0,1.00754329]
[1735868641882,0.28987,3453.1,3453.0,1.00754329]
[1735868642281,41.08987,3453.1,3453.0,1.00754329]
[1735868643290,40.8,3453.1,3452.7,1.135]
[1735868643491,40.8,3453.1,3452.8,1.00754329]
[1735868643890,0.28988,3453.0,3452.9,0.28989]
[1735868644393,40.8,3453.1,3453.0,0.28988]
[1735868644685,3.2078,3453.4,3452.7,1.135]
[1735868644995,3.49765,3453.4,3453.3,1.00754329]
[1735868645285,44.0078,3453.4,3453.3,1.29740329]
[1735868645482,44.0078,3453.4,3453.3,1.00754329]
[1735868645683,44.29765,3453.4,3453.3,1.00754329]
[1735868646181,40.8,3453.4,3453.3,1.29740329]
[1735868646381,3.2078,3454.3,3453.3,4.21534329]
[1735868646585,0.2898,3454.0,3453.9,1.00754329]
[1735868646793,41.0898,3454.0,3453.9,1.00754329]
[1735868648281,41.0898,3454.0,3453.5,4.5351498]
[1735868648282,40.8,3454.0,3453.5,6.82660114]
[1735868648482,40.8,3454.0,3453.9,0.28981]
[1735868651504,3.2078,3454.3,3454.1,0.28979]
[1735868651700,3.49758,3454.3,3454.1,1.42479]
[1735868652003,44.29758,3454.3,3454.1,1.135]
[1735868652200,0.28978,3454.2,3454.1,1.135]
[1735868652592,3.2078,3454.3,3454.2,0.28978]
[1735868654200,3.2078,3454.3,3454.2,4.8249298]
[1735868654597,3.2078,3454.3,3454.2,4.5351498]
[1735868654792,3.49757,3454.3,3454.2,4.5351498]
[1735868654995,3.2078,3454.3,3454.2,4.5351498]
[1735868655295,3.2078,3454.3,3454.2,4.8249298]
[1735868655599,3.2078,3454.3,3454.2,4.5351498]
[1735868655800,0.28977,3454.3,3454.2,4.5351498]
[1735868656801,3.2078,3454.7,3454.2,4.5351498]
[1735868657002,0.28977,3454.4,3454.2,4.8249298]
[1735868657805,0.28977,3454.3,3454.2,4.5351498]
[1735868658197,0.28978,3454.2,3454.1,1.135]
[1735868659297,3.2078,3454.7,3454.1,1.135]
[1735868659613,0.28978,3454.3,3454.1,7.11378412]
[1735868660405,0.28978,3454.2,3454.1,6.82400412]
[1735868660804,0.28978,3454.2,3454.1,7.96405902]
[1735868661004,41.08978,3454.2,3454.1,7.96405902]
[1735868661895,41.08978,3454.2,3454.1,6.82905902]
[1735868662496,40.8,3454.2,3454.0,4.53821742]
[1735868662706,0.28979,3454.1,3454.0,4.53821742]
[1735868663903,0.28979,3454.1,3453.8,6.82905902]
[1735868663904,0.28981,3453.9,3453.8,4.53821742]
[1735868666406,0.28981,3453.9,3453.7,0.28982]
[1735868666407,0.28981,3453.9,3453.7,4.82803742]
[1735868667010,0.28981,3453.8,3453.7,4.82803742]
[1735868667208,40.8,3454.2,3453.7,4.53821742]
[1735868667507,0.28981,3453.8,3453.7,4.82803742]
[1735868668899,3.2078,3454.1,3453.7,4.53821742]
[1735868669104,0.28981,3453.9,3453.8,0.28981]
[1735868669705,0.28981,3453.9,3453.7,0.28982]
[1735868670313,0.28981,3453.9,3453.8,4.54025614]
[1735868670509,0.28981,3453.9,3453.8,4.83006614]
[1735868671810,3.2078,3454.1,3453.8,4.54025614]
[1735868672016,0.2898,3454.0,3453.9,0.2898]
[1735868672710,0.2898,3454.0,3453.8,4.83006614]
[1735868672911,0.2898,3454.0,3453.9,0.28981]
[1735868673305,3.2078,3454.1,3454.0,0.2898]
[1735868673510,40.8,3454.2,3454.1,0.28979]
[1735868673911,40.8,3454.2,3453.9,1.00731713]
[1735868674217,41.08978,3454.2,3454.1,0.28979]
[1735868674912,40.8,3454.2,3454.1,1.29710713]
[1735868676209,40.8,3454.2,3454.1,5.83736327]
[1735868677508,40.8,3454.2,3454.1,13.81727667]
[1735868678715,40.8,3454.2,3454.1,6.98821765]
[1735868680012,40.8,3454.2,3454.1,13.81727667]
[1735868682005,40.8,3454.2,3454.1,6.98821765]
[1735868682409,0.28975,3454.6,3454.5,0.28976]
[1735868682907,41.08975,3454.6,3454.5,0.28976]
[1735868683317,40.8,3454.6,3454.5,0.28976]
[1735868683516,41.08975,3454.6,3454.5,0.28976]
[1735868684023,40.8,3454.6,3454.5,0.28976]
[1735868684905,41.08975,3454.6,3454.5,0.28976]
[1735868685315,40.8,3454.6,3454.5,0.28976]
[1735868686009,41.08975,3454.6,3454.5,0.28976]
[1735868686809,0.28976,3454.5,3454.4,4.53808171]
[1735868687011,1.29707713,3454.5,3454.4,4.53808171]
[1735868687211,1.29707713,3454.5,3454.4,4.82785171]
[1735868687411,42.09707713,3454.5,3454.4,4.82785171]
[1735868687614,42.09707713,3454.5,3454.4,4.53808171]
[1735868688419,42.09707713,3454.5,3454.4,4.82785171]
[1735868688810,42.09707713,3454.5,3454.4,4.53808171]
[1735868689423,40.8,3454.5,3454.4,4.82785171]
[1735868690623,40.8,3454.5,3454.4,5.98611396]
[1735868690926,41.08976,3454.5,3454.4,5.98611396]
[1735868691623,41.08976,3454.5,3454.4,12.79323653]
[1735868692515,40.8,3454.5,3454.4,12.79323653]
[1735868694020,40.8,3454.5,3454.4,5.98611396]
[1735868694528,41.08976,3454.5,3454.4,5.98611396]
[1735868694713,40.8,3454.5,3454.4,5.98611396]
[1735868694916,41.08976,3454.5,3454.4,5.98611396]
[1735868695517,40.8,3454.5,3454.4,5.98611396]
[1735868695724,41.08976,3454.5,3454.4,5.69634396]
[1735868696623,41.08976,3454.5,3454.4,12.5165052]
[1735868699215,41.08976,3454.5,3454.4,4.54733098]
[1735868703628,0.28979,3454.2,3454.1,4.54733098]
[1735868704435,40.8,3454.5,3454.2,0.28978]
[1735868704436,0.28977,3454.4,3454.2,0.28978]
[1735868705417,0.28977,3454.4,3454.2,7.10994124]
[1735868705618,40.8,3454.5,3454.2,7.10994124]
[1735868705619,0.28978,3454.3,3454.2,7.10994124]
[1735868705823,0.28978,3454.3,3454.2,6.82016124]
[1735868706228,0.28977,3454.4,3454.2,7.10994124]
[1735868706425,40.8,3454.5,3454.2,6.82016124]
[1735868706625,0.28977,3454.4,3454.2,12.81306433]
[1735868706933,0.28978,3454.4,3454.2,12.81306433]
[1735868707128,40.8,3454.5,3454.2,12.81306433]
[1735868707327,0.28978,3454.3,3454.2,12.81306433]
[1735868707834,0.28978,3454.3,3454.2,7.10994124]
[1735868708330,40.8,3454.5,3454.2,6.82016124]
[1735868708526,40.8,3454.5,3454.2,7.10995124]
[1735868708727,0.28979,3454.3,3454.2,7.10995124]
[1735868709030,0.28978,3454.4,3454.3,4.83909924]
[1735868709226,41.08977,3454.5,3454.4,0.28978]
[1735868709424,40.8,3454.5,3454.4,0.28978]
[1735868710634,40.8,3454.5,3454.4,5.99269882]
[1735868715737,3.41717986,3455.0,3454.9,0.28972]
[1735868715924,3.41717986,3455.0,3454.9,1.29703713]
[1735868716129,44.21717986,3455.0,3454.9,1.29703713]
[1735868717131,40.8,3455.0,3454.9,16.07620089]
[1735868717837,40.8,3455.0,3454.9,15.06888376]
[1735868718634,40.8,3455.0,3454.9,5.70291882]
[1735868719033,42.09702713,3455.0,3454.9,5.70291882]
[1735868720233,42.09702713,3455.0,3454.9,4.55059428]
[1735868721134,48.10434426,3455.0,3454.9,1.48639428]
[1735868721439,48.10434426,3455.0,3454.9,0.93479428]
[1735868721741,48.10434426,3455.0,3454.5,6.82589143]
[1735868721742,0.28975,3454.6,3454.5,6.82589143]
[1735868722039,4.50486713,3454.6,3454.5,6.82589143]
[1735868722439,45.30486713,3454.6,3454.5,6.82589143]
[1735868723243,45.01511713,3454.6,3454.0,3.2078]
[1735868723435,0.28979,3454.1,3454.0,3.2078]
[1735868723738,0.28978,3454.2,3454.0,3.2078]
[1735868724243,46.2993016,3454.6,3454.0,3.2078]
[1735868724435,3.41662838,3454.5,3454.1,5.61281688]
[1735868724634,0.28979,3454.2,3454.1,5.61281688]
[1735868728351,0.2898,3454.0,3453.9,6.82589143]
[1735868729637,0.2898,3454.0,3453.9,5.61036009]
[1735868730245,41.0898,3454.0,3453.9,5.61036009]
[1735868730449,43.3813016,3454.0,3453.9,5.61036009]
[1735868731249,0.28983,3453.6,3453.5,6.82589143]
[1735868732649,0.28984,3453.5,3453.4,3.2078]
[1735868736042,40.8,3454.0,3453.4,3.2078]
[1735868736244,41.0898,3454.0,3453.8,0.28981]
[1735868736547,0.28981,3453.9,3453.7,0.28982]
[1735868736950,40.8,3454.0,3453.4,3.2078]
[1735868737146,0.28981,3453.9,3453.7,0.28982]
[1735868737748,0.28981,3453.9,3453.6,0.28983]
[1735868738052,0.28981,3453.8,3453.6,0.28983]
[1735868740843,0.28983,3453.7,3453.5,0.28984]
[1735868741050,40.8,3454.0,3453.4,10.03369143]
[1735868741252,0.28984,3453.5,3453.4,10.03369143]
[1735868742249,0.28984,3453.5,3453.4,8.8119258]
[1735868742455,41.52451,3454.0,3453.5,0.28984]
[1735868742456,0.28984,3453.6,3453.5,0.28984]
[1735868742663,0.28983,3453.7,3453.6,0.28983]
[1735868742956,40.8,3454.0,3453.4,8.8119258]
[1735868742957,40.8,3454.0,3453.7,0.28982]
[1735868743155,0.28981,3453.9,3453.7,0.28982]
[1735868743354,0.28981,3453.8,3453.7,0.28982]
[1735868744862,0.28981,3453.8,3453.6,0.28983]
[1735868745163,0.28981,3453.8,3453.6,0.28982]
[1735868745464,0.28981,3453.8,3453.7,0.28982]
[1735868745660,0.28981,3453.8,3453.6,0.28983]
[1735868746760,0.28983,3453.7,3453.5,0.28984]
[1735868746955,0.28983,3453.6,3453.4,7.11573143]
[1735868747164,0.28983,3453.6,3453.4,6.82589143]
[1735868747360,0.28982,3453.7,3453.4,6.82589143]
[1735868747561,0.28982,3453.7,3453.6,0.28983]
[1735868747960,1.00743269,3453.8,3453.4,0.28985]
[1735868748158,0.28985,3453.4,3453.3,6.82589143]
[1735868749066,0.28985,3453.4,3453.2,3.2078]
[1735868749266,0.28985,3453.4,3453.3,0.28986]
[1735868749767,0.28984,3453.5,3453.4,0.28984]
[1735868749964,0.28984,3453.5,3453.2,3.2078]
[1735868749965,1.00743269,3453.6,3453.2,3.2078]
[1735868750265,40.8,3454.0,3453.3,0.28985]
[1735868750266,0.28985,3453.4,3453.3,0.28985]
[1735868750466,43.09226067,3454.0,3453.2,10.03369143]
[1735868750667,0.28985,3453.4,3453.3,0.28985]
[1735868751365,0.28985,3453.4,3453.3,0.28986]
[1735868752062,0.28984,3453.5,3453.4,0.28985]
[1735868752260,0.28983,3453.6,3453.5,0.28983]
[1735868752460,0.28981,3453.8,3453.7,0.28982]
[1735868752661,40.8,3454.0,3453.5,0.28983]
[1735868752864,0.28984,3453.5,3453.3,0.28986]
[1735868753764,3.2078,3453.8,3453.1,7.96089143]
[1735868754068,3.2078,3453.8,3453.1,1.135]
[1735868754369,0.28984,3453.6,3453.1,1.135]
[1735868754561,0.28983,3453.7,3453.5,0.28984]
[1735868755159,3.2078,3453.8,3453.1,1.135]
[1735868755160,3.2078,3453.8,3453.2,5.60350366]
[1735868755472,0.28984,3453.6,3453.4,0.28984]
[1735868756568,0.28983,3453.7,3453.1,7.96089143]
[1735868756769,0.28983,3453.7,3453.5,0.28984]
[1735868756969,0.28984,3453.6,3453.1,7.96089143]
[1735868757170,0.28984,3453.6,3453.4,0.28985]
[1735868757471,0.28983,3453.7,3453.5,0.28983]
[1735868757671,3.2078,3453.8,3453.1,7.96089143]
[1735868757874,0.28983,3453.6,3453.4,0.28984]
[1735868758573,3.2078,3453.8,3453.2,12.42935975]
[1735868758774,0.28983,3453.7,3453.3,0.28986]
[1735868758972,0.28983,3453.7,3453.4,0.28984]
[1735868759171,0.28983,3453.7,3453.5,0.28984]
[1735868760466,3.2078,3453.8,3453.1,7.96089143]
[1735868760669,0.28983,3453.6,3453.4,0.28984]
[1735868760879,3.2078,3453.8,3453.4,0.28984]
[1735868761166,0.28983,3453.7,3453.1,7.96089143]
[1735868761373,0.28983,3453.7,3453.5,0.28984]
[1735868763174,3.2078,3453.8,3453.2,6.82589143]
[1735868763476,0.28982,3453.7,3453.5,0.28984]
[1735868763668,3.2078,3453.8,3453.2,6.82589143]
[1735868763868,3.49762,3453.8,3453.3,6.82589143]
[1735868764072,0.28983,3453.7,3453.4,0.28985]
[1735868764363,0.28983,3453.7,3453.5,0.28984]
[1735868764968,3.49762,3453.8,3453.6,0.28983]
[1735868765967,0.28982,3453.8,3453.6,0.28983]
[1735868766472,0.28982,3453.7,3453.6,0.28983]
[1735868766674,0.28982,3453.7,3453.6,7.11572143]
[1735868767170,44.21662838,3454.0,3453.6,7.11572143]
[1735868767373,44.50642838,3454.0,3453.8,0.28981]
[1735868769776,41.0898,3454.0,3453.9,5.61707791]
[1735868772181,44.50642838,3454.0,3453.9,5.61707791]
[1735868773676,3.41662838,3454.0,3453.9,10.12204402]
[1735868773880,4.5503366,3454.3,3454.2,0.28978]
[1735868774185,45.3503366,3454.3,3454.2,1.29713611]
[1735868774781,4.5503366,3454.3,3454.2,1.29713611]
[1735868775178,40.8,3454.4,3454.2,17.85877845]
[1735868775376,40.8,3454.4,3454.3,0.28977]
[1735868776174,40.8,3454.4,3454.3,15.00299504]
[1735868777382,40.8,3454.4,3454.3,5.90684791]
[1735868778383,40.8,3454.4,3454.3,5.61707791]
[1735868778582,41.08977,3454.4,3454.3,5.61707791]
[1735868779582,40.8,3454.4,3454.3,5.61707791]
[1735868779777,40.8,3454.4,3454.3,5.90684791]
[1735868779778,41.08977,3454.4,3454.3,5.90684791]
[1735868780182,41.08977,3454.4,3454.3,5.61707791]
[1735868781290,40.8,3454.4,3454.3,5.90684791]
[1735868781491,41.08977,3454.4,3454.3,5.90684791]
[1735868782391,40.8,3454.4,3454.3,12.718907]
[1735868783289,0.28974,3454.7,3454.3,12.429137]
[1735868783591,1.00735611,3454.9,3454.6,0.28974]
[1735868783787,41.08973,3454.8,3454.6,0.28974]
[1735868784093,40.8,3454.8,3454.7,0.28974]
[1735868785088,3.2078,3455.0,3454.9,0.28972]
[1735868785490,44.0078,3455.0,3454.9,0.28972]
[1735868785992,0.28968,3455.4,3454.8,4.21515611]
[1735868786291,3.2078,3455.6,3454.8,5.49740429]
[1735868786490,41.08967,3455.5,3455.3,0.28968]
[1735868787389,40.8,3455.5,3455.2,1.42369]
[1735868787595,41.08967,3455.5,3455.3,0.28968]
[1735868788496,40.8,3455.5,3455.3,0.28968]
[1735868788696,40.8,3455.5,3455.2,1.134]
[1735868789092,41.08967,3455.5,3455.3,0.28968]
[1735868789291,40.8,3455.5,3455.2,1.134]
[1735868789691,41.08968,3455.5,3455.3,0.28968]
[1735868789891,40.8,3455.5,3455.3,0.28968]
[1735868790091,41.08967,3455.5,3455.3,0.28968]
[1735868791203,40.8,3455.5,3455.4,0.28968]
[1735868793089,40.8,3455.5,3455.2,1.134]
[1735868793490,40.8,3455.5,3455.4,0.28968]
[1735868798796,3.2078,3456.5,3455.2,8.92100858]
[1735868799102,4.5503366,3456.9,3456.8,0.28956]
[1735868799300,4.5503366,3456.9,3456.8,1.42356]
[1735868801106,40.8,3457.4,3457.3,0.28952]
[1735868801306,3.2078,3457.9,3457.3,3.2078]
[1735868801609,3.2078,3457.9,3457.8,0.28948]
[1735868801900,44.0078,3457.9,3457.8,0.28948]
[1735868802607,3.2078,3457.9,3457.8,0.28948]
[1735868803705,44.0078,3458.3,3458.0,0.28946]
[1735868804309,0.28946,3458.1,3457.8,0.28947]
[1735868804504,44.0078,3458.3,3457.7,1.134]
[1735868804804,0.28945,3458.2,3457.8,0.28948]
[1735868805404,0.28946,3458.1,3457.7,1.42348]
[1735868805701,0.28946,3458.0,3457.7,1.42348]
[1735868806213,0.28944,3458.2,3457.8,0.28947]
[1735868806408,0.28945,3458.1,3457.8,0.28948]
[1735868807409,0.28946,3458.0,3457.7,1.42348]
[1735868808110,0.28946,3458.1,3457.8,0.28948]
[1735868808808,0.28946,3458.1,3457.8,0.28947]
[1735868808999,0.28944,3458.2,3457.7,1.42348]
[1735868809205,0.28946,3458.0,3457.8,0.28948]
[1735868810004,0.28946,3458.0,3457.7,1.42348]
[1735868811113,0.28946,3458.0,3457.8,0.28948]
[1735868811411,0.28946,3458.0,3457.7,1.134]
[1735868811412,0.28946,3458.0,3457.7,1.42348]
[1735868812015,2.28960429,3458.2,3457.3,3.2078]
[1735868812207,0.2895,3457.6,3457.4,1.133]
[1735868812403,0.2895,3457.6,3457.4,1.42251]
[1735868813015,2.28960429,3458.2,3457.4,1.42251]
[1735868813220,0.2895,3457.6,3457.4,1.42251]
[1735868813407,2.28960429,3458.2,3457.4,1.133]
[1735868813610,0.2895,3457.5,3457.4,1.133]
[1735868813810,0.2895,3457.6,3457.4,1.133]
[1735868814110,0.2895,3457.5,3457.4,1.133]
[1735868815119,0.28953,3457.3,3457.0,0.28954]
[1735868815312,0.28954,3457.1,3456.9,0.28955]
[1735868815518,3.2078,3457.3,3456.8,1.133]
[1735868815717,3.2078,3457.3,3456.4,7.241]
[1735868815718,40.8,3457.2,3456.7,1.133]
[1735868816015,40.8,3457.2,3456.9,0.28955]
[1735868816206,41.08953,3457.2,3457.0,0.28955]
[1735868816412,40.8,3457.2,3457.0,0.28955]
[1735868816609,41.08953,3457.2,3457.0,0.28955]
[1735868817516,41.08953,3457.2,3456.9,0.28955]
[1735868817911,0.28954,3457.1,3456.9,0.28955]
[1735868818108,40.8,3457.2,3456.7,1.133]
[1735868818311,41.08954,3457.2,3456.7,1.133]
[1735868818512,41.08954,3457.2,3457.0,0.28954]
[1735868818811,40.8,3457.2,3456.7,1.133]
[1735868819018,0.28955,3457.0,3456.8,0.28956]
[1735868819318,0.28954,3457.1,3456.9,0.28955]
[1735868819617,0.28954,3457.1,3456.8,0.28956]
[1735868819812,0.28954,3457.1,3456.9,0.28955]
[1735868820511,5.49740429,3457.3,3456.6,1.133]
[1735868820813,0.28954,3457.1,3456.9,0.28955]
[1735868821017,44.0078,3457.3,3457.2,0.28953]
[1735868821317,3.2078,3457.3,3457.2,0.28953]
[1735868823413,3.2078,3457.3,3456.8,3.2078]
[1735868823621,0.28954,3457.1,3457.0,0.28955]
[1735868824714,0.28954,3457.1,3456.8,1.133]
[1735868824918,5.49740429,3457.3,3456.7,3.2078]
[1735868825116,0.2896,3456.4,3456.3,3.2078]
[1735868825314,0.28959,3456.5,3456.3,3.4974]
[1735868825918,0.2896,3456.4,3456.3,3.2078]
[1735868826228,0.72387,3457.1,3456.3,3.2078]
[1735868826229,0.28959,3456.5,3456.3,3.4974]
[1735868827014,2.28960429,3457.0,3456.3,3.4974]
[1735868827212,0.28959,3456.5,3456.3,3.2078]
[1735868827623,40.8,3456.4,3456.3,3.4974]
[1735868828115,40.8,3456.4,3456.3,0.2896]
[1735868829210,40.8,3456.4,3456.1,1.133]
[1735868829211,0.28961,3456.3,3456.1,1.42262]
[1735868829411,40.8,3456.4,3456.1,1.133]
[1735868829811,40.8,3456.4,3456.3,0.2896]
[1735868830519,41.0896,3456.4,3456.3,0.2896]
[1735868830720,41.0896,3456.4,3456.2,0.28961]
[1735868830721,0.2896,3456.4,3456.2,0.28961]
[1735868830916,0.28959,3456.5,3456.3,0.2896]
[1735868831120,0.28959,3456.5,3456.1,1.133]
[1735868831121,0.28958,3456.6,3456.4,0.2896]
[1735868831317,0.28958,3456.6,3456.1,1.133]
[1735868831318,0.28959,3456.5,3456.3,0.2896]
[1735868831715,41.08959,3456.5,3456.3,0.2896]
[1735868831922,40.8,3456.5,3456.4,0.2896]
[1735868832314,3.2078,3456.7,3456.2,2.28960429]
[1735868832620,3.2078,3456.7,3456.6,0.28958]
[1735868833925,3.49737,3456.7,3456.1,1.133]
[1735868834215,3.2078,3456.7,3456.1,1.133]
[1735868834421,3.2078,3456.7,3456.5,0.28958]
[1735868834620,3.2078,3456.7,3456.1,1.133]
[1735868834924,3.2078,3456.7,3456.6,0.28958]
[1735868835516,3.49737,3456.7,3456.1,1.133]
[1735868835716,3.2078,3456.7,3456.1,1.133]
[1735868836016,3.2078,3456.7,3456.6,0.28958]
[1735868836422,3.49737,3456.7,3456.6,0.28958]
[1735868836722,3.49737,3456.7,3456.5,0.28958]
[1735868837823,3.2078,3456.7,3456.6,0.28958]
[1735868838015,3.49737,3456.7,3456.5,0.28958]
[1735868839621,0.28958,3456.6,3456.5,0.28958]
[1735868840018,3.2078,3456.7,3456.5,0.28958]
[1735868840322,3.49737,3456.7,3456.2,0.28961]
[1735868840521,3.49737,3456.7,3456.5,0.28958]
[1735868841118,0.28957,3456.8,3456.6,0.28958]
[1735868841319,44.0078,3457.1,3456.6,0.28957]
[1735868841620,0.28957,3456.8,3456.6,0.28957]
[1735868841816,0.28957,3456.7,3456.5,0.28958]
[1735868843222,0.28958,3456.6,3456.5,0.28958]
[1735868843619,44.0078,3457.1,3456.5,0.28958]
[1735868843923,0.28957,3456.7,3456.5,0.28958]
[1735868844125,0.28955,3457.0,3456.8,0.28956]
[1735868844327,0.28956,3456.8,3456.3,0.2896]
[1735868844620,0.28956,3456.8,3456.1,1.133]
[1735868844825,0.28956,3456.8,3456.6,0.28958]
[1735868845022,0.28956,3456.8,3456.1,1.133]
[1735868845222,0.28956,3456.8,3456.6,0.28957]
[1735868846424,0.28956,3456.8,3456.1,1.85706]
[1735868846626,0.28956,3456.8,3456.6,0.28957]
[1735868846825,44.0078,3457.1,3456.6,0.28957]
[1735868847027,0.28957,3456.7,3456.6,0.28957]
[1735868847227,0.28957,3456.8,3456.6,0.28957]
[1735868848732,0.28957,3456.7,3456.5,0.28958]
[1735868849728,44.0078,3457.1,3456.1,5.65044094]
[1735868849931,44.0078,3457.1,3456.6,0.28958]
[1735868850131,0.28957,3456.7,3456.6,0.28958]
[1735868850629,44.0078,3457.1,3456.6,0.28958]
[1735868850934,0.28958,3456.7,3456.5,0.28958]
[1735868851237,0.72391,3456.9,3456.2,1.133]
[1735868851635,0.2896,3456.3,3456.2,1.133]
[1735868853233,0.2896,3456.4,3456.2,1.42261]
[1735868853435,0.28959,3456.6,3456.3,0.2896]
[1735868853637,44.0078,3457.1,3456.2,3.42260429]
[1735868854334,0.28957,3456.7,3456.5,0.28958]
[1735868854929,44.0078,3457.1,3456.5,0.28958]
[1735868855132,0.28957,3456.8,3456.3,4.51744094]
[1735868855332,0.28957,3456.8,3456.6,0.28958]
[1735868855527,0.28957,3456.8,3456.5,0.28958]
[1735868856733,0.28957,3456.8,3456.4,3.2078]
[1735868856940,0.28957,3456.8,3456.5,0.28958]
[1735868857531,0.28957,3456.8,3456.4,7.72524094]
[1735868858136,44.0078,3457.1,3456.6,4.51744094]
[1735868858336,0.28957,3456.7,3456.6,4.51744094]
[1735868861338,0.28958,3456.6,3456.5,4.51744094]
[1735868865947,3.2078,3456.7,3456.2,4.51744094]
[1735868865948,0.2896,3456.3,3456.2,4.51744094]
[1735868866943,8.4820866,3456.7,3456.1,4.51744094]
[1735868866944,0.28961,3456.2,3456.1,4.51744094]
[1735868867150,3.41589875,3456.5,3456.1,4.51744094]
[1735868867348,0.28961,3456.3,3456.1,4.51744094]
[1735868867946,0.28961,3456.2,3456.1,4.51744094]
[1735868868146,0.28961,3456.2,3456.1,9.09614713]
[1735868869243,0.28961,3456.2,3456.1,5.65164823]
[1735868870549,0.28961,3456.2,3456.1,12.45860296]
[1735868872148,3.41589875,3456.4,3456.1,12.45860296]
[1735868872656,0.28961,3456.2,3456.1,12.45860296]
[1735868872854,0.28961,3456.2,3456.1,6.80695473]
[1735868873851,0.28961,3456.2,3456.1,12.46019044]
[1735868877755,0.28961,3456.2,3456.1,12.74981044]
[1735868877949,0.28961,3456.3,3456.1,12.74981044]
[1735868878451,0.28961,3456.2,3456.1,12.46019044]
[1735868878851,0.28961,3456.2,3456.1,6.80695473]
[1735868880045,0.28961,3456.2,3456.1,12.46109066]
[1735868881055,3.41589875,3456.5,3456.1,12.46109066]
[1735868881260,3.41589875,3456.5,3456.3,0.2896]
[1735868881455,3.70547875,3456.6,3456.3,0.2896]
[1735868881656,3.70547875,3456.6,3456.4,0.28959]
[1735868882253,0.28959,3456.5,3456.3,0.2896]
[1735868882860,0.28959,3456.5,3456.4,6.80695473]
[1735868883057,3.2078,3456.7,3456.4,7.09654473]
[1735868883058,0.28958,3456.6,3456.4,7.09654473]
[1735868883751,0.28958,3456.6,3456.4,6.80695473]
[1735868883950,3.2078,3456.7,3456.4,6.80695473]
[1735868884258,3.2078,3456.7,3456.6,0.28958]
[1735868885758,3.2078,3456.7,3456.6,15.03613306]
[1735868886260,0.28955,3456.9,3456.7,0.28956]
[1735868888459,0.28955,3456.9,3456.8,4.53393088]
[1735868888658,0.28955,3457.0,3456.8,4.82349088]
[1735868888860,0.28955,3456.9,3456.8,4.82349088]
[1735868889157,0.28955,3456.9,3456.8,4.53393088]
[1735868889359,0.28955,3457.0,3456.8,4.82349088]
[1735868892362,40.8,3457.1,3456.8,4.82349088]
[1735868892553,0.28955,3457.0,3456.8,4.82349088]
[1735868893460,40.8,3457.1,3456.8,4.53393088]
[1735868894059,41.08954,3457.1,3456.8,4.53393088]
[1735868894256,0.28955,3457.0,3456.8,4.82349088]
[1735868894462,0.28955,3457.0,3456.9,4.53393088]
[1735868895361,40.8,3457.1,3456.8,4.53393088]
[1735868895765,0.28954,3457.0,3456.8,4.53393088]
[1735868895963,0.28955,3456.9,3456.8,4.53393088]
[1735868896564,0.28955,3457.0,3456.8,4.82349088]
[1735868897165,40.8,3457.1,3456.8,4.53393088]
[1735868897466,0.28955,3457.0,3456.8,4.82349088]
[1735868897765,2.57915429,3456.9,3456.8,4.53393088]
[1735868898361,1.29543141,3456.9,3456.8,4.53393088]
[1735868899467,1.29543141,3456.9,3456.5,3.2078]